{"text_format":"1","workbook":"xlsx","n_sheets":1,"sheets":["2025"],"not_rendered":{"charts":0,"images":0,"macros":0,"external_links":0,"defined_names":1,"comments":0,"pivot_tables":0},"unopened":[],"bounds":{"document_bytes":16777216,"sheet_cells":100000,"rows_first":2000,"rows_last":500,"rows_between":2000,"halvings":0,"cell_chars":16384,"cell_head_chars":4096},"cells_cut":0,"cells_raw":0,"read":"whole","date_system":"1900"}

{"sheet":"2025","index":0,"n_rows":59,"n_cols":8,"rows_kept":59,"cut":false,"hidden":false,"merged":[[3,0,3,6],[7,0,7,1]]}
["KOŘENY - IRIS SIBIRICA - 2025"]
["objednávkový formulář - kupní smlouva mezi"]
["odběratel"]
[]
["IČ/DIČ"]
["dodavatel"]
["THOOLEN s.r.o., Čelakovského 2543, 26901 Rakovník, IČ48950700"]
["nabídka je platná do vyprodání zásob"]
["ceny jsou uváděny vč. licencí a dopravy do vaší firmy"]
["přepravka, ve které jsou kořeny expedovány, je vratný obal"]
[]
[{"$f":"SUM(A14:A64)","v":0},null,null,null,null,null,{"$f":"SUM(G14:G64)","v":0},{"$f":"SUM(H14:H64)","v":0}]
["poč.přepr.","kultivar","velikost","MJ/přepravka","Kč / rostl.","Kč / přepravka","za objed.","s DPH"]
[null,"Iris sibirica Peacock Butterfly® Banish Misfortune® ",1,250,14.42,3604.5,{"$f":"F14*A14","v":0},{"$f":"G14*1.12","v":0}]
[null,"Iris sibirica Peacock Butterfly® Black Joker® ",1,250,21.3,5325.75,{"$f":"F15*A15","v":0},{"$f":"G15*1.12","v":0}]
[null,"Iris sibirica Peacock Butterfly® Butterscotch Fizz",1,250,17.86,4465.13,{"$f":"F16*A16","v":0},0]
[null,"Iris sibirica Peacock Butterfly® Charming Billy® ",1,250,19.579999999999998,4895.4399999999996,0,0]
[null,"Iris sibirica Peacock Butterfly® Cherry Fling® ",1,250,23.02,5756.06,{"$f":"F18*A18","v":0},0]
[null,"Iris sibirica Peacock Butterfly® Clean Planet",1,250,19.579999999999998,4895.4399999999996,0,0]
[null,"Iris sibirica Peacock Butterfly® Creme de Vanille ®",1,250,19.579999999999998,4895.4399999999996,0,0]
[null,"Iris sibirica Peacock Butterfly® Daring Design",1,250,19.579999999999998,4895.4399999999996,0,0]
[null,"Iris sibirica Peacock Butterfly® Double Pleasure ",1,250,19.579999999999998,4895.4399999999996,0,0]
[null,"Iris sibirica Peacock Butterfly® Drink your Tea® ",1,250,17.86,4465.13,0,0]
[null,"Iris sibirica Peacock Butterfly® Fancy me This® ",1,250,17.86,4465.13,0,0]
[null,"Iris sibirica Peacock Butterfly® Festive Coquette ®",1,250,19.579999999999998,4895.4399999999996,0,0]
[null,"Iris sibirica Peacock Butterfly® Fiddles on Fire ®",1,250,19.579999999999998,4895.4399999999996,0,0]
[null,"Iris sibirica Peacock Butterfly®Follow the Honey ®",1,250,19.579999999999998,4895.4399999999996,0,0]
[null,"Iris sibirica Peacock Butterfly® Ginger Twist®",1,250,17.86,4465.13,0,0]
[null,"Iris sibirica Peacock Butterfly® It's Electric",1,250,19.579999999999998,4895.4399999999996,0,0]
[null,"Iris sibirica Paecock Butterfly® Jaybird",1,250,19.579999999999998,4895.4399999999996,0,0]
[null,"Iris sibirica Peacock Butterfly® Jerry Murphy® ",1,250,17.86,4465.13,0,0]
[null,"Iris sibirica Peacock Butterfly® Juniper Leigh ®",1,250,19.579999999999998,4895.4399999999996,0,0]
[null,"Iris sibirica Peacock Butterfly® Laser Focus ®",1,250,19.579999999999998,4895.4399999999996,0,0]
[null,"Iris sibirica Peacock Butterfly® Laughing Beauty",1,250,19.579999999999998,4895.4399999999996,0,0]
[null,"Iris sibirica Peacock Butterfly®  Lightning Contrast",1,250,19.579999999999998,4895.4399999999996,0,0]
[null,"Iris sibirica Peacock Butterfly® Like Lavender ® ",1,250,19.579999999999998,4895.4399999999996,0,0]
[null,"Iris sibirica Peacock Butterfly® Mad Hat®",1,250,21.3,5325.75,0,0]
[null,"Iris sibirica Peacock Butterfly® Miss Apple®",1,250,17.86,4465.13,0,0]
[null,"iris sibirica Peacock Butterfly® Mission Bay® ",1,250,17.86,4465.13,0,0]
[null,"Iris sibirica Peacock Butterfly® Multicolor Interest",1,250,19.579999999999998,4895.4399999999996,0,0]
[null,"Iris sibirica Peacock Butterfly® Multicolor Passion",1,250,19.579999999999998,4895.4399999999996,0,0]
[null,"Iris sibirica Peacock Butterfly® Multiple Choice ®",1,250,19.579999999999998,4895.4399999999996,0,0]
[null,"Iris sibirica Peacock Butterfly® Night Crawlers ®",1,250,19.579999999999998,4895.4399999999996,0,0]
[null,"Iris sibirica Peacock Butterfly® On Mulberry Street®",1,250,21.3,5325.75,0,0]
[null,"Iris sibirica Paecock Butterfly® Outside the Box",1,250,19.579999999999998,4895.4399999999996,0,0]
[null,"Iris sibirica Peacock Butterfly® Painted Woman® ",1,250,21.3,5325.75,0,0]
[null,"Iris sibirica Peacock Butterfly® Paprikash® ",1,250,17.86,4465.13,0,0]
[null,"Iris sibirica Peacock Butterfly® Pennywhistle® ",1,250,14.42,3604.5,{"$f":"F48*A48","v":0},0]
[null,"Iris sibirica Peacock Butterfly® Pretty Design",1,250,19.579999999999998,4895.4399999999996,0,0]
[null,"Iris sibirica Peacock Butterfly® So van Gogh®",1,250,17.86,4465.13,0,0]
[null,"Iris sibirica Peacock Butterfly® Solar Energy®",1,250,24.75,6186.38,0,0]
[null,"Iris sibirica Peacock Butterfly® Sweeter Still ®",1,250,19.579999999999998,4895.4399999999996,0,0]
[null,"Iris sibirica Peacock Butterfly® Theme and Variation ® ",1,250,19.579999999999998,4895.4399999999996,0,0]
[null,"Iris sibirica Peacock Butterfly® Tipped in Blue ® ",1,250,17.86,4465.13,0,0]
[null,"Iris sibirica Peacock Butterfly® Unbuttoned Zippers®",1,250,16.14,4034.81,0,0]
[null,"Iris sibirica Peacock Butterfly® Uncorked® ",1,250,16.14,4034.81,0,0]
[null,"Iris sibirica Peacock Butterfly® White Amber® ",1,250,19.579999999999998,4895.4399999999996,0,0]
[null,"Iris sibirica Peacock Butterfly® Wynne Magnolia®",1,250,21.3,5325.75,0,0]
[null,"Iris sibirica Peacock Butterfly® Breeder's Mix",1,250,12.7,3174.19,0,0]